Cogmind - Beta 15 @@@ ROGUE MODE // 2025.08.04 @ 22:34:05 Player: beans Result: Destroyed by as-70349 with Assembled Maul Performance ------------- Evolutions (1) 500 Regions Visited (3) 600 Robots Destroyed (50) 250 Value Destroyed (1163) 1163 Prototype IDs (1) 20 Alien Tech Used (0) 0 Bonus (0) 0 TOTAL SCORE: 2533 Bonus ------- None Cogmind --------- Core Integrity 0/400 Matter 0/300 Energy 100/100 System Corruption 1% Temperature Cool (0) Movement Core (800) Ox15 Location -9/Mines Parts ------- > --- POWER (1) -------- (None) > --- PROPULSION (2) --- (None) > --- UTILITY (2) ------ High-capacity Storage Unit > --- WEAPON (4) ------- Makeshift Shrapnel Gun Light Cannon Light Cannon > --- INVENTORY (20) --- Medium Matter Pod (0) Medium Matter Pod (0) Medium Matter Pod (0) Bomb Drone Bay Assault Rifle Grenade Launcher Mini Grenade Launcher Mini Grenade Launcher Mini Grenade Launcher Peak State ------------ > --- POWER ------------ (None) > --- PROPULSION ------- Improved Hover Unit Improved Hover Unit > --- UTILITY ---------- Improved Heat Sink High-capacity Storage Unit > --- WEAPON ----------- Pulse Rifle Improved Light Cannon Improved Light Cannon Improved Light Cannon > --- INVENTORY -------- Medium Matter Pod Medium Matter Pod Medium Matter Pod Bomb Drone Bay Assault Rifle Light Cannon Light Cannon Light Cannon Improved Light Cannon Grenade Launcher Mini Grenade Launcher Mini Grenade Launcher Mini Grenade Launcher Mini Grenade Launcher [Rating: 20] Favorites ----------- Power Ion Engine Engine Ion Engine Power Core Light Nuclear Core Propulsion Improved Hover Unit Treads Light Treads Hover Unit Improved Hover Unit Utility High-capacity Storage Unit Device Improved Heat Sink Storage High-capacity Storage Unit Hackware Hacking Suite Weapon Improved Light Cannon Energy Gun Pulse Rifle Ballistic Gun Assault Rifle Ballistic Cannon Improved Light Cannon Launcher Grenade Launcher Build | -11 -10 -9 -9 ------- Run | Yrd Mat Mat Min Slots Evolved 2 | . . 2 . Power . | . . . . Propulsion . | . . . . Utility . | . . . . Weapon 2 | . . 2 . Parts Attached 33 | 5 10 13 5 Power 3 | 1 1 . 1 Engine 2 | 1 . . 1 Core 1 | . 1 . . Reactor . | . . . . Propulsion 7 | 2 3 2 . Treads 2 | 2 . . . Leg . | . . . . Wheel . | . . . . Hover 5 | . 3 2 . Flight . | . . . . Utility 3 | . 2 1 . Device 1 | . . 1 . Storage 1 | . 1 . . Processor . | . . . . Hackware 1 | . 1 . . Protection . | . . . . Artifact . | . . . . Weapon 20 | 2 4 10 4 Energy Gun 3 | . . 3 . Energy Cannon . | . . . . Ballistic Gun 4 | 2 1 . 1 Ballistic Cannon 8 | . . 7 1 Launcher 5 | . 3 . 2 Special Weapon . | . . . . Impact Weapon . | . . . . Slashing Weapon . | . . . . Piercing Weapon . | . . . . Special Melee Weapon . | . . . . Unidentified Prototypes 1 | . . 1 . Parts Lost 20 | . 7 3 10 Power 3 | . 1 1 1 Propulsion 6 | . 2 2 2 Utility 2 | . 1 . 1 Weapon 9 | . 3 . 6 Highest Loss Streak 9 | . 7 2 9 To Critical Strikes . | . . . . Average Backups 7 | . 1 10 11 Power . | . . . . Propulsion . | . . 1 . Utility 1 | . . . 3 Weapon 5 | . . 8 8 Tool/Special . | . . . . Unused Backups 2 | . . . 2 Power . | . . . . Propulsion . | . . . . Utility 1 | . . . 1 Weapon 1 | . . . 1 Tool/Special . | . . . . Average Slot Usage (%) 65 | . 52 76 66 Engine 2 | . 3 . 2 Treads 2 | . 7 . . Hover 12 | . 5 21 8 Device 2 | . . 2 5 Storage 10 | . 8 11 11 Energy Gun 4 | . . 7 6 Ballistic Gun 7 | . 16 1 4 Ballistic Cannon 18 | . . 30 27 Launcher 3 | . 9 1 . Peak Build Rating 20 | 5 11 18 20 Average Rating 10 | 3 4 13 14 On Entrance 8 | . 5 11 18 Naked Turns . | . . . . Heaviest Build 59 | 8 46 56 59 Greatest Support 40 | 40 40 14 14 Greatest Overweight (x) 17 | . 14 3 17 Average Overweight (x) 3 | . 2 2 7 Largest Inventory Capacity 20 | 5 20 20 20 Average Capacity 17 | 5 14 20 20 Most Carried 16 | 2 7 13 16 Average Carried 7 | . 1 10 12 Final Capacity 20 | 5 20 20 20 Final Carried 13 | . 7 13 10 Class Distribution -------------------- 58% | Gunner 41% | Mutant Dominant Class ---------------- Mutant | -10/Materials Gunner | -9/Materials Gunner | -9/Mines Resources | -11 -10 -9 -9 ----------- Run | Yrd Mat Mat Min Matter Collected 1346 | 176 386 753 31 Remotely . | . . . . Salvage Created 1492 | . 607 806 79 Parts 81 | . 35 40 6 Haulers Intercepted 2 | . 1 1 . Recyclers Shooed 3 | . . 1 2 Parts Field Recycled . | . . . . Retrieved Matter . | . . . . Parts Self-Destructed . | . . . . Prevented . | . . . . Kills | -11 -10 -9 -9 ------- Run | Yrd Mat Mat Min Combat Hostiles Destroyed 43 | . 13 13 17 Guns 10 | . 6 3 1 Cannons 9 | . . 4 5 AOE 24 | . 7 6 11 Classes Destroyed 10 | . 6 3 1 Worker 5 | . . 5 . Builder 3 | . . 3 . Hauler 2 | . 1 1 . Recycler 5 | . 2 3 . Operator 1 | . 1 . . Watcher 4 | . 1 3 . Swarmer 7 | . 3 . 4 Grunt 18 | . 10 8 . Sentry 5 | . . 5 . Assembled 13 | . . . 13 Best Kill Streak 13 | . 5 7 13 Combat Bots Only 13 | . 4 6 13 Max Kills in Single Turn 3 | . 2 2 3 Gunslinging . | . . . . Exploded 3 | . 2 2 3 Melee . | . . . . Uniques/NPCs Destroyed . | . . . . Combat | -11 -10 -9 -9 -------- Run | Yrd Mat Mat Min Hostile Shots Fired 205 | . 86 46 73 Missed 57 | . 25 17 15 Hits 148 | . 61 29 58 Melee 9 | . . . 9 Projectile 139 | . 61 29 49 AOE 19 | . . . 19 Critical Strikes 1 | . . . 1 Damage Taken 2773 | . 814 510 1449 Core 521 | . 115 73 333 Absorbed by Shields . | . . . . Core Remaining (%) 77 | 100 54 . . Volleys Fired 144 | . 64 57 23 Largest 4 | . 2 4 4 Hottest 162 | . 50 162 159 Shots Fired 308 | . 108 140 60 Gun 139 | . 94 35 10 Cannon 140 | . . 97 43 Launcher 29 | . 14 8 7 Special . | . . . . Kinetic 249 | . 94 106 49 Thermal 25 | . . 21 4 Explosive 29 | . 14 8 7 Electromagnetic 5 | . . 5 . Robot Hit Streak 11 | . 7 11 3 Robot Miss Streak 7 | . 4 6 7 Penetration Max . | . . . . Secondary Targets 1 | . 1 . . Max Gunslinging Chain 1 | . 1 . . Shots Hit Robots 138 | . 56 60 22 Core Hits 104 | . 40 39 25 Critical Kills . | . . . . Critical Parts Destroyed . | . . . . Critical Strikes 1 | . . . 1 Burn 1 | . . . 1 Melee Attacks . | . . . . Impact . | . . . . Slashing . | . . . . Piercing . | . . . . Sneak Attacks . | . . . . Combat Hostiles . | . . . . Follow-up Attacks . | . . . . Damage Inflicted 3959 | . 1165 1647 1147 Guns 1100 | . 598 397 105 Cannons 1009 | . . 698 311 Explosions 1850 | . 567 552 731 Melee . | . . . . Ramming . | . . . . Kinetic 1709 | . 598 760 351 Thermal 450 | . 48 337 65 Explosive 1741 | . 519 491 731 Electromagnetic 59 | . . 59 . Impact . | . . . . Slashing . | . . . . Piercing . | . . . . Highest Corruption 1 | . . . 1 Average Corruption 1 | . . . 1 Corruption Purged . | . . . . Corruption Blocked . | . . . . Effects 5 | . . . 5 Matter Fused 1 | . . . 1 Energy Discharges 1 | . . . 1 Data Loss (minor) 3 | . . . 3 Overload Shots . | . . . . Overflow Damage 83 | . 38 27 18 Projectiles . | . . . . Explosions 83 | . 38 27 18 Melee . | . . . . Knockbacks 7 | . . 2 5 Impact . | . . . . Kinetic 6 | . . 1 5 Secondary 1 | . . 1 . Self-Inflicted Damage 165 | . 73 37 55 Shots 6 | . 3 1 2 Rammed . | . . . . Targets Rammed . | . . . . Kicked . | . . . . Crushed . | . . . . Highest Temperature 414 | . 24 414 75 Average Temperature 65 | . 9 89 18 Received Heat Transfer 576 | . 414 162 . Effects 1 | . . 1 . Energy Bleed 1 | . . 1 . Siege Activations . | . . . . Martial Activations . | . . . . Shielding Activations . | . . . . Robots Disrupted . | . . . . Combat Hostiles . | . . . . Robots Corrupted . | . . . . Combat Hostiles . | . . . . Parts Fried . | . . . . Impact Corruptions . | . . . . Robots Melted . | . . . . Combat Hostiles . | . . . . Parts Melted . | . . . . Heat Transferred 1014 | . 100 692 222 Parts Sabotaged . | . . . . Parts Stolen . | . . . . Parts Stripped . | . . . . Power Chain Reactions 1 | . . 1 . Alert | -11 -10 -9 -9 ------- Run | Yrd Mat Mat Min Maximum Alert Level 1 | . . 1 . Low Security (%) 99 | 100 100 97 100 Level 1 . | . . 2 . Level 2 . | . . . . Level 3 . | . . . . Level 4 . | . . . . Level 5 . | . . . . High Security . | . . . . Max Security . | . . . . Peak Influence 211 | . 151 211 80 Initial 33 | . . 33 24 Average 62 | . 61 101 12 Influence Increases 1174 | . 531 498 145 Destroy 0b10 Robot/C 600 | . 260 260 80 Destroy 0b10 Robot/NC 100 | . 25 75 . Destroy Leader 152 | . 64 78 10 Disable Machine 105 | . 75 30 . Destroy Structure 172 | . 92 40 40 Lose Combat Pursuer 45 | . 15 15 15 Influence Decreases 1174 | . 450 515 209 Entered New Map 88 | . . 48 40 Time Decay 952 | . 380 440 132 Lost Part 134 | . 70 27 37 Squads Dispatched 3 | . 3 . . Investigation 1 | . 1 . . Extermination . | . . . . Reinforcement 2 | . 2 . . Assault . | . . . . Garrison . | . . . . Intercept . | . . . . Searches Triggered . | . . . . Construction Impeded . | . . . . Haulers Reinforced . | . . . . Active Scanning Responses . | . . . . Cargo Convoy Interrupts . | . . . . Stealth | -11 -10 -9 -9 --------- Run | Yrd Mat Mat Min Distress Signals 3 | . 1 2 . Communications Jammed . | . . . . Distress Signals . | . . . . Times Spotted 66 | . 23 19 24 Peak Tracking Total 17 | . 5 5 17 Tactical Retreats 3 | . 1 1 1 Traps | -11 -10 -9 -9 ------- Run | Yrd Mat Mat Min Traps Triggered 2 | . 1 1 . Indirectly . | . . . . Trap Hack Attempts . | . . . . Triggered . | . . . . Disarmed . | . . . . Reprogrammed . | . . . . Reused . | . . . . Traps Extracted . | . . . . Installed . | . . . . Triggered . | . . . . Machines | -11 -10 -9 -9 ---------- Run | Yrd Mat Mat Min Machines Disabled 7 | . 5 2 . Max in Single Turn 2 | . 2 1 . Machines Repaired . | . . . . Machines Dismantled . | . . . . Machines Sabotaged . | . . . . Overloaded Fab Kills . | . . . . Hacking | -11 -10 -9 -9 --------- Run | Yrd Mat Mat Min Machines Accessed 1 | . . . 1 Terminals . | . . . . Fabricators . | . . . . Repair Stations . | . . . . Recycling Units . | . . . . Scanalyzers . | . . . . Garrison Access . | . . . . Total Hacks 1 | . . . 1 Successful 1 | . . . 1 Failed . | . . . . Catastrophic . | . . . . Database Lockouts . | . . . . Manual . | . . . . Terminals . | . . . . Fabricators . | . . . . Repair Stations . | . . . . Recycling Units . | . . . . Scanalyzers . | . . . . Garrison Access . | . . . . Terminal Hacks 1 | . . . 1 Open Door 1 | . . . 1 Fabricator Hacks . | . . . . Repair Station Hacks . | . . . . Recycling Unit Hacks . | . . . . Scanalyzer . | . . . . Garrison Access Hacks . | . . . . Unauthorized Hacks . | . . . . Terminals . | . . . . Fabricators . | . . . . Repair Stations . | . . . . Recycling Units . | . . . . Scanalyzers . | . . . . Garrison Access . | . . . . Data Cores Recovered . | . . . . Used . | . . . . Hacking Detections . | . . . . Full Trace Events . | . . . . Feedback Events . | . . . . Feedback Blocked . | . . . . Robot Schematics Acquired . | . . . . Robots Built . | . . . . Authchips . | . . . . Time . | . . . . Total Robot Build Rating . | . . . . Part Schematics Acquired . | . . . . Parts Built . | . . . . Authchips . | . . . . Time . | . . . . Total Part Build Rating . | . . . . Parts Repaired . | . . . . Time . | . . . . Parts Recycled . | . . . . Recycled Matter . | . . . . Retrieved Matter . | . . . . Retrieved Components . | . . . . Parts Scanalyzed . | . . . . Part Schematics Acquired . | . . . . Parts Damaged . | . . . . Bothacking | -11 -10 -9 -9 ------------ Run | Yrd Mat Mat Min Used RIF Installer . | . . . . Robots Hacked . | . . . . Non-combat . | . . . . Combat . | . . . . Robot Hacks Applied . | . . . . Relay Couplers Released . | . . . . Fabnet Peak Effective % . | . . . . Robots Rewired . | . . . . Allies Hacked . | . . . . Hacks Repelled . | . . . . Allies | -11 -10 -9 -9 -------- Run | Yrd Mat Mat Min Total Allies . | . . . . Largest Group . | . . . . Highest-Rated Group . | . . . . Highest-Rated Ally . | . . . . Total Orders . | . . . . Ally Attacks . | . . . . Total Damage . | . . . . Kills . | . . . . Allies Corrupted . | . . . . Allies Melted . | . . . . Intel | -11 -10 -9 -9 ------- Run | Yrd Mat Mat Min Active Infowar (turns) . | . . . . Robot Analysis Total . | . . . . Derelict Logs Recovered . | . . . . Drone Launches . | . . . . Drone Recoveries . | . . . . Exploration | -11 -10 -9 -9 ------------- Run | Yrd Mat Mat Min Turns Passed 2927 | 91 1030 1090 716 Spaces Moved 941 | 56 381 374 130 Core 238 | 7 193 . 38 Treads 144 | 49 95 . . Legs . | . . . . Wheels . | . . . . Hover 559 | . 93 374 92 Flight . | . . . . Fastest Speed 50 | 50 50 176 236 Average Speed 257 | 146 220 231 489 Slowest Speed 900 | 160 750 236 900 Overloaded Moves . | . . . . Propulsion Burnouts . | . . . . Robots Hopped . | . . . . Potential Cave-ins . | . . . . Cave-ins Triggered . | . . . . Exploration Rate (%) 35 | 5 64 32 40 Regions Visited 3 Branch Regions 1 Pre-discovered Areas . | . . . . Known Exits Taken . | . . . . Unknown Exits Taken 3 | 1 1 1 . Scrap Searched . | . . . . Spaces Dug 20 | . 20 . . Terrain Destroyed 185 | . 90 37 58 Melee . | . . . . Projectile 4 | . . 3 1 AOE 181 | . 90 34 57 Terrain Rammed . | . . . . Walls Destroyed . | . . . . Machines Disabled . | . . . . Actions | -11 -10 -9 -9 --------- Run | Yrd Mat Mat Min Total 1199 | 65 472 496 166 Wait 29 | . . 29 . Move 938 | 55 380 373 130 Hop . | . . . . Pick Up 38 | 5 15 15 3 Fast Attach . | . . . . Attach 30 | 5 8 10 7 Detach 3 | . 1 2 . Swap 13 | . 3 7 3 Drop 4 | . 1 3 . Fire 144 | . 64 57 23 Melee . | . . . . Ram . | . . . . Kick . | . . . . Crush . | . . . . Escape Stasis . | . . . . Rewire . | . . . . Trap . | . . . . Miscellaneous . | . . . . Route ------- -11/Scrapyard -10/Materials (discovered 3 exits: [*Mat x2] / [*Sub]) -9/Materials (discovered 2 exits: [*Mat] / *Min) -9/Mines History --------- Turn | Location | Event 5 | -11/Scrapyard | Discovered new exit (range 14) 92 | -11/Scrapyard | Entered Materials 302 | -10/Materials | Build established: Mutant 420 | -10/Materials | Lost 7 parts (1p2n1u3w) 454 | -10/Materials | Discovered new exit (range 13) 912 | -10/Materials | Discovered new exit (range 15) 912 | -10/Materials | Discovered new exit (range 13) 1122 | -10/Materials | Entered another Materials area 1122 | -9/Materials | Evolved 2 slots: Weapon x2 1500 | -9/Materials | Build established: Gunner 2070 | -9/Materials | Discovered new exit (range 13) 2145 | -9/Materials | Discovered new exit (range 16) 2212 | -9/Materials | Entered Mines 2242 | -9/Mines | Found the Drone Emporium 2255 | -9/Mines | Found Prototype Device 2402 | -9/Mines | A weapon hastily lodged in a ceiling crevice suddenly fell to the ground 2523 | -9/Mines | Assembled infested the area 2528 | -9/Mines | Assisted by a Guerilla fighting off Assembled 2606 | -9/Mines | Core integrity fell below 50% 2619 | -9/Mines | Destroyed 13 combat bots 2626 | -9/Mines | Core integrity fell below 20% 2656 | -9/Mines | Lost 9 parts (1p1n1u6w) 2928 | -9/Mines | Destroyed by as-70349 with Assembled Maul Last Messages --------------- U-05 Engineer lays Concrete. K-01 Serf collects debris. The unstable cave ceiling collapses. K-01 Serf collects debris. The unstable cave ceiling collapses. K-01 Serf collects debris. Acquired 7 matter. K-01 Serf collects debris. T-07 Excavator destroyed. U-05 Engineer builds a Wall. U-05 Engineer lays Concrete. U-05 Engineer builds a Wall. K-01 Serf collects debris. U-05 Engineer builds a Wall. K-01 Serf destroyed. U-05 Engineer lays Concrete. U-05 Engineer builds a Wall. System corrupted: Component data lost. System corrupted: Energy discharge (-25). System corrupted: Component data lost. Map ----- +----------------------------------------------------+ | ????????????????????????????????????#" | | ????????????????????????????####???##%###########? | | ????????????????????????????# ???## ##?????????? | | ???????????????????????????## ##?## ###????????? | | ???????????????????????????# #?## #%#????????? | | ????????????????????????????# ### # ##???????? | | ????????????????????????????## ##??????? | | ????????????????????????????# ##?????? | | ??????????????????????????????# #?????? | | ???????????????????????????????# #?????? | | ???????????????????????###?????# #?????? | | ??????????????????????? #????# #?????? | | ??????????????????????? ????## ###????? | | ??????????????????????? %=#????## # ##????? | | ??????????????????????? ##???## ### # #????? | | ??????????????????????? ####?# #????? | | ???????????????????????# ### ## # #????? | | ???????????????????????# ## ## ## ###????? | | ???????????????????????# # ###?????? | | ??????????????????????# %#= #?????? | | ??????????????????????# ## =!%* ##?????? | | ???????????????????????# #?## # ##??????? | | ???????????????????????## ##???### #??????? | | ????????????????????????# #????????# #??????? | | ????????????????????????# #????????# ##??????? | | ????????????????????????#@ ########?#" " ####???? | | ????????????????????????# a #?### ##??? | | ????????????????????????# #???## #??? | | ????????????????????????######## ###### #??? | | ???????????????????????????????# ##??? | | ???????????????????????????????###############???? | | ?????????????????????????????????????????????????? | | ?????????????????????????????????????????????????? | | | | | | | | | | | | | | | | | | | | | | | | | | | | | | | | | | | +----------------------------------------------------+ Best States ------------- Heat Dissipation 42 Energy Generation 14 Energy Capacity 250 Matter Stores 300 Matter Capacity 300 Sight Range 16 Terrain Scan Density 10 Evasion (%) 50 Recoil Reduction 2 Offensive Hacking 10 Item Schematics ----------------- None Robot Schematics ------------------ None Fabricated ------------ Nothing Repaired ---------- Nothing Alien Tech Used ----------------- None Achievements -------------- None Challenges ------------ None Game ------ Seed TransportMasterProtection Manual? 0 Play Time 00:17:37 Cumulative 79.3 hours Start 2025.08.04 @ 13:44:00 End 2025.08.04 @ 22:34:05 Sessions 1 Manual Loads 0 Difficulty Rogue Special Mode None Game No. 320 Rogue 320 Adventurer 0 Explorer 0 Win Type - Total 0 Types 0/0/0/0/0/0/0/0/0/0 Lore% 31 Gallery% 35 Achievement% 28 Wizard Run 0 Options --------- Layout 2 ASCII 0 Keyboard 0 Movement Mouse Keybinds 0 Fullscreen 2 Font 24/Smallcaps Map View 50x44 Zoom Use 0% Tactical HUD 0 Map Filters NONE Filters NONE Steam 1 RUN: 00845de1-a6e9-47a0-aa4c-14d6fbb0eb77